[Event "Early-Titled-Tuesday-Blitz-May-07-2024"]
[Site "Chess.com"]
[Date "2024.05.07"]
[Round "6"]
[White "Bilan_Danila"]
[Black "chessdjw"]
[Result "0-1"]
[WhiteElo "2559"]
[BlackElo "2772"]
[TimeControl "180+1"]
[EndTime "9:10:34 PDT"]
[Termination "chessdjw won by resignation"]

1. d4 {[%clk 0:03:00.9]} 1... Nf6 {[%clk 0:03:00]} 2. Nf3 {[%clk 0:03:00.8]}
2... d5 {[%clk 0:02:58.4]} 3. c4 {[%clk 0:03:00.1]} 3... e6 {[%clk 0:02:58.6]}
4. Nc3 {[%clk 0:03:00.1]} 4... Bb4 {[%clk 0:02:58.5]} 5. Qb3 {[%clk 0:02:56.8]}
5... c5 {[%clk 0:02:57.8]} 6. a3 {[%clk 0:02:56.1]} 6... Bxc3+ {[%clk
0:02:43.4]} 7. bxc3 {[%clk 0:02:51.4]} 7... O-O {[%clk 0:02:38.4]} 8. e3 {[%clk
0:02:51.4]} 8... Nc6 {[%clk 0:02:38.4]} 9. a4 {[%clk 0:02:49.3]} 9... Na5 {[%clk
0:02:30.4]} 10. Qa2 {[%clk 0:02:47.2]} 10... dxc4 {[%clk 0:02:23.4]} 11. Bxc4
{[%clk 0:02:45.3]} 11... Nxc4 {[%clk 0:02:23.1]} 12. Qxc4 {[%clk 0:02:46.2]}
12... b6 {[%clk 0:02:22.8]} 13. O-O {[%clk 0:02:40.7]} 13... Bb7 {[%clk
0:02:22.8]} 14. dxc5 {[%clk 0:02:15.5]} 14... Qc7 {[%clk 0:02:18.7]} 15. Ba3
{[%clk 0:01:46.4]} 15... Rfc8 {[%clk 0:02:17.4]} 16. c6 {[%clk 0:00:43.8]} 16...
Bxc6 {[%clk 0:02:10.9]} 17. Nd4 {[%clk 0:00:40.4]} 17... Bd5 {[%clk 0:02:03.3]}
18. Qxc7 {[%clk 0:00:38]} 18... Rxc7 {[%clk 0:02:04.2]} 19. Nb5 {[%clk
0:00:36.8]} 19... Rc4 {[%clk 0:02:01.3]} 20. Rfc1 {[%clk 0:00:11.3]} 20... Rxa4
{[%clk 0:01:49]} 21. Be7 {[%clk 0:00:06.7]} 21... Rxa1 {[%clk 0:01:42.4]} 22.
Rxa1 {[%clk 0:00:07.6]} 22... a5 {[%clk 0:01:42.5]} 23. Bxf6 {[%clk 0:00:03.2]}
23... gxf6 {[%clk 0:01:42.6]} 24. f3 {[%clk 0:00:03.1]} 24... Rd8 {[%clk
0:01:37]} 25. e4 {[%clk 0:00:02.7]} 25... Bc4 {[%clk 0:01:35.8]} 26. Nd4 {[%clk
0:00:02.9]} 26... Kf8 {[%clk 0:01:20.9]} 27. g4 {[%clk 0:00:02.8]} 27... e5
{[%clk 0:01:13.9]} 28. Nf5 {[%clk 0:00:02.8]} 28... Rd3 {[%clk 0:01:14.6]} 29.
Kf2 {[%clk 0:00:02.9]} 29... Ke8 {[%clk 0:01:09.5]} 30. Ne3 {[%clk 0:00:02.7]}
30... Rxc3 {[%clk 0:01:02.9]} 31. Rb1 {[%clk 0:00:01.7]} 31... Bb3 {[%clk
0:01:00.7]} 32. Rb2 {[%clk 0:00:01.6]} 32... a4 {[%clk 0:00:59.4]} 33. Rd2
{[%clk 0:00:01.1]} 33... a3 {[%clk 0:00:58.1]} 34. Nf5 {[%clk 0:00:01.7]} 34...
Rc2 {[%clk 0:00:57.6]} 0-1

[Event "Early-Titled-Tuesday-Blitz-May-07-2024"]
[Site "Chess.com"]
[Date "2024.05.07"]
[Round "6"]
[White "Winner_7777"]
[Black "NigiriSushies"]
[Result "1-0"]
[WhiteElo "2587"]
[BlackElo "2412"]
[TimeControl "180+1"]
[EndTime "9:10:35 PDT"]
[Termination "Winner_7777 won by resignation"]

1. d4 {[%clk 0:03:00.9]} 1... Nf6 {[%clk 0:02:56.8]} 2. c4 {[%clk 0:03:01.2]}
2... g6 {[%clk 0:02:55.1]} 3. Nc3 {[%clk 0:03:00.6]} 3... Bg7 {[%clk 0:02:55]}
4. e4 {[%clk 0:03:00.7]} 4... O-O {[%clk 0:02:54.6]} 5. Be2 {[%clk 0:03:00.2]}
5... d6 {[%clk 0:02:54.9]} 6. Be3 {[%clk 0:03:00.8]} 6... Nbd7 {[%clk 0:02:54]}
7. g4 {[%clk 0:02:49.5]} 7... e5 {[%clk 0:02:53.9]} 8. d5 {[%clk 0:02:49.5]}
8... Ne8 {[%clk 0:02:48.4]} 9. h4 {[%clk 0:02:47.2]} 9... f5 {[%clk 0:02:40]}
10. gxf5 {[%clk 0:02:44.8]} 10... gxf5 {[%clk 0:02:39.9]} 11. exf5 {[%clk
0:02:45.7]} 11... Nb6 {[%clk 0:02:40.1]} 12. Bd3 {[%clk 0:02:39.9]} 12... Bxf5
{[%clk 0:02:37.9]} 13. Bxf5 {[%clk 0:02:40.8]} 13... Rxf5 {[%clk 0:02:38.5]} 14.
Qd3 {[%clk 0:02:32.8]} 14... Qf6 {[%clk 0:02:37.8]} 15. Nge2 {[%clk 0:02:25.7]}
15... Kh8 {[%clk 0:02:31.1]} 16. Ng3 {[%clk 0:02:23.9]} 16... Rf3 {[%clk
0:02:25.5]} 17. Qe4 {[%clk 0:01:53.6]} 17... Qf7 {[%clk 0:01:30.1]} 18. Ke2
{[%clk 0:01:18.5]} 18... Rf6 {[%clk 0:01:22.9]} 19. Rag1 {[%clk 0:01:16]} 19...
Qg6 {[%clk 0:01:21.6]} 20. h5 {[%clk 0:01:08.4]} 20... Qxe4 {[%clk 0:01:17.7]}
21. Ncxe4 {[%clk 0:01:00.7]} 21... Rf7 {[%clk 0:01:14.8]} 22. h6 {[%clk
0:01:00]} 22... Bf8 {[%clk 0:01:12]} 23. b3 {[%clk 0:00:57.2]} 23... Nd7 {[%clk
0:01:06.8]} 24. Nh5 {[%clk 0:00:32.7]} 24... Nef6 {[%clk 0:01:00.3]} 25. Ng5
{[%clk 0:00:29.2]} 25... Re7 {[%clk 0:00:58.5]} 26. Ne6 {[%clk 0:00:26.4]} 26...
Nxh5 {[%clk 0:00:52.3]} 27. Rxh5 {[%clk 0:00:27.3]} 27... Nf6 {[%clk 0:00:52.3]}
28. Rf5 {[%clk 0:00:26.8]} 28... Nd7 {[%clk 0:00:43.6]} 29. Bg5 {[%clk
0:00:19.3]} 29... Ree8 {[%clk 0:00:39]} 30. Rf7 {[%clk 0:00:19.2]} 1-0

[Event "Early-Titled-Tuesday-Blitz-May-07-2024"]
[Site "Chess.com"]
[Date "2024.05.07"]
[Round "6"]
[White "chesslh93"]
[Black "JG-17"]
[Result "0-1"]
[WhiteElo "2357"]
[BlackElo "2530"]
[TimeControl "180+1"]
[EndTime "9:10:35 PDT"]
[Termination "JG-17 won on time"]

1. e4 {[%clk 0:03:00.9]} 1... c5 {[%clk 0:03:00]} 2. Nf3 {[%clk 0:03:00.9]} 2...
d6 {[%clk 0:03:00.6]} 3. d4 {[%clk 0:03:01.2]} 3... cxd4 {[%clk 0:03:01.5]} 4.
Nxd4 {[%clk 0:03:02.1]} 4... Nf6 {[%clk 0:03:02.2]} 5. Nc3 {[%clk 0:03:02.2]}
5... g6 {[%clk 0:03:03]} 6. Be3 {[%clk 0:03:02.2]} 6... Nc6 {[%clk 0:03:03.8]}
7. f3 {[%clk 0:02:59.4]} 7... h5 {[%clk 0:03:04.3]} 8. Qd2 {[%clk 0:02:53.6]}
8... Nxd4 {[%clk 0:03:04.7]} 9. Bxd4 {[%clk 0:02:53.4]} 9... Bh6 {[%clk
0:03:05.4]} 10. Be3 {[%clk 0:02:51.7]} 10... Bxe3 {[%clk 0:03:06]} 11. Qxe3
{[%clk 0:02:52.6]} 11... Be6 {[%clk 0:03:06.1]} 12. Bb5+ {[%clk 0:02:44.1]}
12... Kf8 {[%clk 0:03:05.6]} 13. Ba4 {[%clk 0:02:44]} 13... Qa5 {[%clk
0:03:03.2]} 14. O-O {[%clk 0:02:28.8]} 14... Kg7 {[%clk 0:03:01.9]} 15. Bb3
{[%clk 0:02:28.2]} 15... Rac8 {[%clk 0:02:56.2]} 16. Rfe1 {[%clk 0:02:22.2]}
16... Qc5 {[%clk 0:02:55.3]} 17. Rad1 {[%clk 0:02:12.1]} 17... h4 {[%clk
0:02:55.2]} 18. e5 {[%clk 0:01:54.2]} 18... dxe5 {[%clk 0:02:50.6]} 19. Bxe6
{[%clk 0:01:52.7]} 19... fxe6 {[%clk 0:02:51.5]} 20. Qxc5 {[%clk 0:01:47.7]}
20... Rxc5 {[%clk 0:02:51.2]} 21. Rd2 {[%clk 0:01:39]} 21... Rhc8 {[%clk
0:02:48.8]} 22. Kf2 {[%clk 0:01:35.3]} 22... b5 {[%clk 0:02:46.2]} 23. a3 {[%clk
0:01:33.7]} 23... a5 {[%clk 0:02:46.2]} 24. Ree2 {[%clk 0:01:32.7]} 24... b4
{[%clk 0:02:42.1]} 25. axb4 {[%clk 0:01:33]} 25... axb4 {[%clk 0:02:43]} 26. Ne4
{[%clk 0:01:03.2]} 26... Rc4 {[%clk 0:02:34]} 27. g3 {[%clk 0:00:48.8]} 27...
Nd5 {[%clk 0:02:23.7]} 28. c3 {[%clk 0:00:28.3]} 28... b3 {[%clk 0:02:16.9]} 29.
Re1 {[%clk 0:00:11.6]} 29... Ra8 {[%clk 0:02:15.2]} 30. Red1 {[%clk 0:00:11.9]}
30... Ra2 {[%clk 0:02:13.8]} 31. Ke1 {[%clk 0:00:05.6]} 31... Ne3 {[%clk
0:02:12.9]} 32. Rc1 {[%clk 0:00:04.6]} 32... Nc2+ {[%clk 0:02:10.3]} 33. Rcxc2
{[%clk 0:00:04.7]} 33... bxc2 {[%clk 0:02:10.4]} 34. Rxc2 {[%clk 0:00:05.6]}
34... h3 {[%clk 0:02:09.2]} 35. Kd2 {[%clk 0:00:03.9]} 35... Ra1 {[%clk
0:02:08.8]} 36. Nf2 {[%clk 0:00:04.1]} 36... Rc6 {[%clk 0:01:58.8]} 37. Nxh3
{[%clk 0:00:03.4]} 37... Rh1 {[%clk 0:01:59.5]} 38. Ng5 {[%clk 0:00:02.7]} 38...
Rxh2+ {[%clk 0:01:58.2]} 39. Kc1 {[%clk 0:00:03]} 39... Rh1+ {[%clk 0:01:51.5]}
40. Kd2 {[%clk 0:00:03.3]} 40... Kf6 {[%clk 0:01:51.9]} 41. Ne4+ {[%clk
0:00:03.3]} 41... Kf5 {[%clk 0:01:52.3]} 42. Ke3 {[%clk 0:00:03.2]} 42... Re1+
{[%clk 0:01:49.1]} 43. Kf2 {[%clk 0:00:02.8]} 43... Rb1 {[%clk 0:01:49.8]} 44.
Ke3 {[%clk 0:00:02.9]} 44... g5 {[%clk 0:01:49.6]} 45. Rh2 {[%clk 0:00:02.4]}
45... Kg6 {[%clk 0:01:48.5]} 46. Rc2 {[%clk 0:00:02]} 46... Ra6 {[%clk
0:01:48.1]} 47. Rd2 {[%clk 0:00:01.9]} 47... Ra2 {[%clk 0:01:48.3]} 48. b4
{[%clk 0:00:01.3]} 48... Ra3 {[%clk 0:01:45.2]} 49. Nc5 {[%clk 0:00:01.1]} 49...
Rxc3+ {[%clk 0:01:44]} 50. Ke4 {[%clk 0:00:01.6]} 50... Re1+ {[%clk 0:01:43.6]}
0-1

[Event "Early-Titled-Tuesday-Blitz-May-07-2024"]
[Site "Chess.com"]
[Date "2024.05.07"]
[Round "6"]
[White "LikeWater"]
[Black "Happy1712Drummer"]
[Result "1-0"]
[WhiteElo "2678"]
[BlackElo "2511"]
[TimeControl "180+1"]
[EndTime "9:10:37 PDT"]
[Termination "LikeWater won by resignation"]

1. Nf3 {[%clk 0:03:00.9]} 1... c5 {[%clk 0:02:59.6]} 2. g3 {[%clk 0:03:01.8]}
2... Nc6 {[%clk 0:02:59]} 3. Bg2 {[%clk 0:03:02.7]} 3... g6 {[%clk 0:02:59.3]}
4. O-O {[%clk 0:03:03.6]} 4... Bg7 {[%clk 0:02:59.7]} 5. d3 {[%clk 0:03:04.5]}
5... e5 {[%clk 0:02:58.7]} 6. c3 {[%clk 0:03:05.4]} 6... Nge7 {[%clk 0:02:59.2]}
7. e4 {[%clk 0:03:06.3]} 7... O-O {[%clk 0:02:59.7]} 8. a4 {[%clk 0:03:07]} 8...
d6 {[%clk 0:03:00]} 9. Na3 {[%clk 0:03:07.9]} 9... h6 {[%clk 0:02:59.6]} 10. Nc4
{[%clk 0:03:07.2]} 10... Be6 {[%clk 0:02:59.8]} 11. Nfd2 {[%clk 0:03:06.6]}
11... Qd7 {[%clk 0:02:57.8]} 12. Ne3 {[%clk 0:03:05.6]} 12... f5 {[%clk
0:02:54.4]} 13. f4 {[%clk 0:03:04.1]} 13... Kh7 {[%clk 0:02:32.9]} 14. Nd5
{[%clk 0:03:03.9]} 14... Rae8 {[%clk 0:02:27.3]} 15. a5 {[%clk 0:03:02.6]} 15...
exf4 {[%clk 0:02:08.8]} 16. gxf4 {[%clk 0:02:57]} 16... fxe4 {[%clk 0:02:03]}
17. dxe4 {[%clk 0:02:57.9]} 17... Bg4 {[%clk 0:01:55.2]} 18. Qa4 {[%clk
0:02:47.6]} 18... Nxd5 {[%clk 0:01:48.9]} 19. exd5 {[%clk 0:02:47.6]} 19... Ne7
{[%clk 0:01:49.6]} 20. Qxd7 {[%clk 0:02:41.5]} 20... Bxd7 {[%clk 0:01:50.5]} 21.
Ne4 {[%clk 0:02:42]} 21... Nc8 {[%clk 0:01:48.8]} 22. Bd2 {[%clk 0:02:25.8]}
22... Bf5 {[%clk 0:01:48.1]} 23. Ng3 {[%clk 0:02:26.1]} 23... Bd3 {[%clk
0:01:42.9]} 24. Rfe1 {[%clk 0:02:26.3]} 24... Ne7 {[%clk 0:01:42.7]} 25. Re6
{[%clk 0:02:24.1]} 25... Nf5 {[%clk 0:01:34.5]} 26. Rae1 {[%clk 0:02:17.1]}
26... Rxe6 {[%clk 0:01:28.5]} 27. Rxe6 {[%clk 0:02:15.7]} 27... Rf6 {[%clk
0:01:20.9]} 28. Nxf5 {[%clk 0:02:08.8]} 28... Bxf5 {[%clk 0:01:12.7]} 29. Re7
{[%clk 0:02:07.7]} 29... b6 {[%clk 0:00:58.7]} 30. a6 {[%clk 0:02:07.9]} 30...
Bd3 {[%clk 0:00:49.7]} 31. Rxa7 {[%clk 0:02:07.5]} 31... Rf8 {[%clk 0:00:50.3]}
32. Bf1 {[%clk 0:01:19.8]} 32... Bxf1 {[%clk 0:00:39.2]} 33. Kxf1 {[%clk
0:01:19]} 33... g5 {[%clk 0:00:38.5]} 34. Rb7 {[%clk 0:01:03.6]} 34... gxf4
{[%clk 0:00:32.7]} 35. a7 {[%clk 0:01:03.2]} 35... Ra8 {[%clk 0:00:31.7]} 36.
Bxf4 {[%clk 0:01:03.4]} 36... Rf8 {[%clk 0:00:10.5]} 37. Ke2 {[%clk 0:00:57.7]}
37... Re8+ {[%clk 0:00:10.1]} 38. Kd3 {[%clk 0:00:56.8]} 1-0

[Event "Early-Titled-Tuesday-Blitz-May-07-2024"]
[Site "Chess.com"]
[Date "2024.05.07"]
[Round "6"]
[White "SkinnyPuppy8"]
[Black "yonaltimur"]
[Result "1-0"]
[WhiteElo "2232"]
[BlackElo "2383"]
[TimeControl "180+1"]
[EndTime "9:10:38 PDT"]
[Termination "SkinnyPuppy8 won by resignation"]

1. e4 {[%clk 0:03:00.1]} 1... c5 {[%clk 0:03:00]} 2. Nf3 {[%clk 0:02:59.8]} 2...
d6 {[%clk 0:03:00.5]} 3. c3 {[%clk 0:02:59.3]} 3... Nf6 {[%clk 0:03:00.4]} 4.
Be2 {[%clk 0:02:59.2]} 4... e6 {[%clk 0:02:49.8]} 5. O-O {[%clk 0:02:52.8]} 5...
Be7 {[%clk 0:02:48.8]} 6. Re1 {[%clk 0:02:51.4]} 6... O-O {[%clk 0:02:48.1]} 7.
Bf1 {[%clk 0:02:47]} 7... Nc6 {[%clk 0:02:48]} 8. d4 {[%clk 0:02:46.2]} 8...
cxd4 {[%clk 0:02:42.5]} 9. cxd4 {[%clk 0:02:45.9]} 9... d5 {[%clk 0:02:42.4]}
10. e5 {[%clk 0:02:45.2]} 10... Ne4 {[%clk 0:02:42.5]} 11. Nc3 {[%clk
0:02:45.9]} 11... Nxc3 {[%clk 0:02:41.9]} 12. bxc3 {[%clk 0:02:46.8]} 12... Bd7
{[%clk 0:02:40]} 13. Bd3 {[%clk 0:02:37.1]} 13... Rc8 {[%clk 0:02:39.3]} 14. Bd2
{[%clk 0:02:17.4]} 14... Na5 {[%clk 0:02:37.3]} 15. Rb1 {[%clk 0:02:07.4]} 15...
b6 {[%clk 0:02:30]} 16. g3 {[%clk 0:02:02.4]} 16... Qc7 {[%clk 0:02:22.7]} 17.
h4 {[%clk 0:01:58.4]} 17... Rfe8 {[%clk 0:02:19.8]} 18. Ng5 {[%clk 0:01:54]}
18... g6 {[%clk 0:01:23.2]} 19. Nxh7 {[%clk 0:01:18.5]} 19... Kxh7 {[%clk
0:01:04.9]} 20. Qh5+ {[%clk 0:01:16.6]} 20... Kg7 {[%clk 0:00:58.9]} 21. Bh6+
{[%clk 0:01:10]} 21... Kh7 {[%clk 0:00:47.9]} 22. Bg5+ {[%clk 0:00:41.6]} 22...
Kg7 {[%clk 0:00:44.3]} 23. Qh6+ {[%clk 0:00:33]} 23... Kg8 {[%clk 0:00:42.7]}
24. Bxg6 {[%clk 0:00:32.5]} 24... fxg6 {[%clk 0:00:43.6]} 25. Qxg6+ {[%clk
0:00:32.2]} 25... Kh8 {[%clk 0:00:43.9]} 26. Bf6+ {[%clk 0:00:12.6]} 26... Bxf6
{[%clk 0:00:41.9]} 27. exf6 {[%clk 0:00:13.5]} 27... Bc6 {[%clk 0:00:36.3]} 28.
f7 {[%clk 0:00:13.5]} 1-0

[Event "Early-Titled-Tuesday-Blitz-May-07-2024"]
[Site "Chess.com"]
[Date "2024.05.07"]
[Round "6"]
[White "Ruslan_Kurayan"]
[Black "GrotBchess"]
[Result "0-1"]
[WhiteElo "2622"]
[BlackElo "2496"]
[TimeControl "180+1"]
[EndTime "9:10:42 PDT"]
[Termination "GrotBchess won by resignation"]

1. e4 {[%clk 0:03:00.9]} 1... c5 {[%clk 0:02:59.5]} 2. Nf3 {[%clk 0:03:01]} 2...
e6 {[%clk 0:02:59.1]} 3. d4 {[%clk 0:03:01.4]} 3... cxd4 {[%clk 0:02:59.7]} 4.
Nxd4 {[%clk 0:03:02.2]} 4... Nc6 {[%clk 0:02:59.9]} 5. Nc3 {[%clk 0:03:02.4]}
5... Nf6 {[%clk 0:02:58]} 6. Ndb5 {[%clk 0:03:02.1]} 6... Bc5 {[%clk 0:02:58.4]}
7. Nd6+ {[%clk 0:02:54.4]} 7... Ke7 {[%clk 0:02:58.1]} 8. Bf4 {[%clk 0:02:51.6]}
8... e5 {[%clk 0:02:58]} 9. Nf5+ {[%clk 0:02:51.2]} 9... Kf8 {[%clk 0:02:57.8]}
10. Bg5 {[%clk 0:02:34.5]} 10... Bb4 {[%clk 0:02:55.7]} 11. Bd3 {[%clk
0:02:26.9]} 11... d5 {[%clk 0:02:46.6]} 12. exd5 {[%clk 0:02:15.1]} 12... Qxd5
{[%clk 0:02:42.8]} 13. O-O {[%clk 0:02:03.5]} 13... Bxc3 {[%clk 0:02:40.9]} 14.
bxc3 {[%clk 0:02:04]} 14... e4 {[%clk 0:02:33.4]} 15. Bxe4 {[%clk 0:01:45.9]}
15... Qxd1 {[%clk 0:02:22.3]} 16. Raxd1 {[%clk 0:01:45.5]} 16... Nxe4 {[%clk
0:02:21.5]} 17. Be7+ {[%clk 0:01:41.8]} 17... Ke8 {[%clk 0:02:06.1]} 18. Nd6+
{[%clk 0:01:09.6]} 18... Kxe7 {[%clk 0:01:51]} 19. Nxe4 {[%clk 0:01:07.7]} 19...
Be6 {[%clk 0:01:51.1]} 20. f4 {[%clk 0:01:07.3]} 20... Rhd8 {[%clk 0:01:49.8]}
21. Rde1 {[%clk 0:01:06.2]} 21... Kf8 {[%clk 0:01:48.1]} 22. a3 {[%clk
0:01:05.6]} 22... h6 {[%clk 0:01:46.6]} 23. Nc5 {[%clk 0:01:03.6]} 23... Bc4
{[%clk 0:01:43.5]} 24. Rf2 {[%clk 0:00:58.9]} 24... b6 {[%clk 0:01:41.5]} 25.
Ne4 {[%clk 0:00:58.4]} 25... Rd7 {[%clk 0:01:35.7]} 26. f5 {[%clk 0:00:57.8]}
26... Re8 {[%clk 0:01:34.1]} 27. f6 {[%clk 0:00:53.4]} 27... Bd5 {[%clk
0:01:25.2]} 28. Rf4 {[%clk 0:00:46.2]} 28... Rxe4 {[%clk 0:01:19.1]} 29. fxg7+
{[%clk 0:00:44.5]} 29... Kxg7 {[%clk 0:01:18.7]} 30. Rfxe4 {[%clk 0:00:45.2]}
30... Bxe4 {[%clk 0:01:18.2]} 31. Rxe4 {[%clk 0:00:46.1]} 31... Rd1+ {[%clk
0:01:17.9]} 32. Kf2 {[%clk 0:00:46.3]} 32... Rd2+ {[%clk 0:01:18.1]} 33. Kg3
{[%clk 0:00:45.3]} 33... Rxc2 {[%clk 0:01:17.8]} 34. Rc4 {[%clk 0:00:45.8]}
34... Ne5 {[%clk 0:01:15.6]} 35. Rc7 {[%clk 0:00:45.8]} 35... a5 {[%clk
0:01:11.6]} 36. Kf4 {[%clk 0:00:45.8]} 36... Nd3+ {[%clk 0:01:11.6]} 37. Ke3
{[%clk 0:00:44.7]} 37... Nc5 {[%clk 0:01:10.4]} 38. Rc6 {[%clk 0:00:39.3]} 38...
Rxc3+ {[%clk 0:01:08.1]} 39. Kd4 {[%clk 0:00:39.8]} 39... Rxa3 {[%clk
0:01:07.3]} 40. Rxb6 {[%clk 0:00:40.1]} 40... Ne6+ {[%clk 0:01:07.2]} 41. Ke4
{[%clk 0:00:40.6]} 41... Ra2 {[%clk 0:01:07.4]} 42. Kf3 {[%clk 0:00:40.5]} 42...
a4 {[%clk 0:01:07.1]} 43. Ra6 {[%clk 0:00:40.9]} 43... a3 {[%clk 0:01:06.3]} 44.
h4 {[%clk 0:00:41.5]} 44... Ra1 {[%clk 0:01:06.1]} 45. Kg3 {[%clk 0:00:41.9]}
45... a2 {[%clk 0:01:06.2]} 46. Ra4 {[%clk 0:00:42]} 46... Nc5 {[%clk
0:01:01.6]} 47. Ra3 {[%clk 0:00:41.3]} 47... Ne4+ {[%clk 0:00:57]} 48. Kg4
{[%clk 0:00:39]} 48... Nc3 {[%clk 0:00:53.6]} 49. Rxc3 {[%clk 0:00:36.1]} 49...
Rg1 {[%clk 0:00:53.2]} 50. Ra3 {[%clk 0:00:37]} 50... a1=Q {[%clk 0:00:52.2]}
51. Rxa1 {[%clk 0:00:37.9]} 51... Rxa1 {[%clk 0:00:51.1]} 0-1

[Event "Early-Titled-Tuesday-Blitz-May-07-2024"]
[Site "Chess.com"]
[Date "2024.05.07"]
[Round "6"]
[White "littlepinkyboy"]
[Black "Daaksboy"]
[Result "1-0"]
[WhiteElo "2655"]
[BlackElo "2497"]
[TimeControl "180+1"]
[EndTime "9:10:43 PDT"]
[Termination "littlepinkyboy won by checkmate"]

1. e4 {[%clk 0:03:00.9]} 1... c5 {[%clk 0:02:59.4]} 2. Nf3 {[%clk 0:03:00.7]}
2... d6 {[%clk 0:02:59.9]} 3. d4 {[%clk 0:03:01.4]} 3... cxd4 {[%clk 0:03:00.5]}
4. Nxd4 {[%clk 0:03:02.3]} 4... Nf6 {[%clk 0:03:01.1]} 5. Nc3 {[%clk 0:03:03]}
5... a6 {[%clk 0:03:01.7]} 6. h3 {[%clk 0:03:00.8]} 6... Nc6 {[%clk 0:02:58.9]}
7. g4 {[%clk 0:02:57.6]} 7... g6 {[%clk 0:02:58.2]} 8. Be3 {[%clk 0:02:54.8]}
8... Nxd4 {[%clk 0:02:57.4]} 9. Bxd4 {[%clk 0:02:54.2]} 9... Bh6 {[%clk
0:02:57.4]} 10. Qd3 {[%clk 0:02:37]} 10... O-O {[%clk 0:02:50.3]} 11. Bg2 {[%clk
0:02:34.9]} 11... Bd7 {[%clk 0:02:39.3]} 12. O-O {[%clk 0:02:33.1]} 12... Bc6
{[%clk 0:02:39.4]} 13. f4 {[%clk 0:02:29.9]} 13... e5 {[%clk 0:02:33.1]} 14.
fxe5 {[%clk 0:02:01.4]} 14... dxe5 {[%clk 0:02:30.4]} 15. Bxe5 {[%clk
0:02:02.3]} 15... Nd7 {[%clk 0:02:29.9]} 16. Bd6 {[%clk 0:01:54.7]} 16... Re8
{[%clk 0:02:26.5]} 17. Kh1 {[%clk 0:01:55.4]} 17... Qh4 {[%clk 0:02:20.4]} 18.
Bg3 {[%clk 0:01:52.3]} 18... Qe7 {[%clk 0:02:19.2]} 19. Nd5 {[%clk 0:01:51.9]}
19... Qc5 {[%clk 0:02:11]} 20. Nc7 {[%clk 0:01:49.4]} 20... Rad8 {[%clk
0:02:08]} 21. Nxe8 {[%clk 0:01:47.2]} 21... Rxe8 {[%clk 0:02:05.4]} 22. Qf3
{[%clk 0:01:27.1]} 22... Re7 {[%clk 0:02:00.4]} 23. Qf2 {[%clk 0:01:25.9]} 23...
Qxf2 {[%clk 0:01:52.8]} 24. Rxf2 {[%clk 0:01:24.3]} 24... Bxe4 {[%clk
0:01:51.3]} 25. Re1 {[%clk 0:01:23.1]} 25... Bxg2+ {[%clk 0:01:50.8]} 26. Rxg2
{[%clk 0:01:24]} 26... Rxe1+ {[%clk 0:01:48.1]} 27. Bxe1 {[%clk 0:01:24.9]}
27... Nc5 {[%clk 0:01:45.3]} 28. Re2 {[%clk 0:01:23.2]} 28... Bf4 {[%clk
0:01:42.8]} 29. Bd2 {[%clk 0:01:20.7]} 29... Bd6 {[%clk 0:01:37.7]} 30. Bb4
{[%clk 0:01:20.2]} 30... Kg7 {[%clk 0:01:34.4]} 31. Re8 {[%clk 0:01:00.6]} 31...
Kf6 {[%clk 0:01:30.7]} 32. Kg2 {[%clk 0:00:57.5]} 32... h5 {[%clk 0:01:25.3]}
33. gxh5 {[%clk 0:00:56.5]} 33... gxh5 {[%clk 0:01:26.2]} 34. Rh8 {[%clk
0:00:56.2]} 34... Kg5 {[%clk 0:01:20.9]} 35. Rd8 {[%clk 0:00:52]} 35... Be5
{[%clk 0:01:05.3]} 36. Bxc5 {[%clk 0:00:48.5]} 36... Bxb2 {[%clk 0:01:04.2]} 37.
Rd5+ {[%clk 0:00:48.5]} 37... f5 {[%clk 0:01:04.3]} 38. Bd4 {[%clk 0:00:49.2]}
38... Ba3 {[%clk 0:01:03.5]} 39. Rd7 {[%clk 0:00:49.5]} 39... b5 {[%clk
0:01:03.1]} 40. Kf3 {[%clk 0:00:47.2]} 40... a5 {[%clk 0:01:02.5]} 41. Rg7+
{[%clk 0:00:46]} 41... Kh4 {[%clk 0:01:02.8]} 42. Bf2+ {[%clk 0:00:39.2]} 42...
Kxh3 {[%clk 0:01:02]} 43. Rg3+ {[%clk 0:00:40.1]} 43... Kh2 {[%clk 0:01:02.2]}
44. Rg2+ {[%clk 0:00:40.6]} 44... Kh1 {[%clk 0:00:58.9]} 45. Rg1+ {[%clk
0:00:41.5]} 45... Kh2 {[%clk 0:00:59.2]} 46. Rb1 {[%clk 0:00:40.8]} 46... b4
{[%clk 0:00:52.9]} 47. Bg3+ {[%clk 0:00:40.5]} 47... Kh3 {[%clk 0:00:52.2]} 48.
Rh1# {[%clk 0:00:41.4]} 1-0

[Event "Early-Titled-Tuesday-Blitz-May-07-2024"]
[Site "Chess.com"]
[Date "2024.05.07"]
[Round "6"]
[White "JoliyRoger"]
[Black "santosalberto1987"]
[Result "0-1"]
[WhiteElo "2395"]
[BlackElo "2565"]
[TimeControl "180+1"]
[EndTime "9:10:44 PDT"]
[Termination "santosalberto1987 won on time"]

1. d4 {[%clk 0:03:00.9]} 1... Nf6 {[%clk 0:02:59.8]} 2. c4 {[%clk 0:02:59.8]}
2... d6 {[%clk 0:02:59.8]} 3. Nc3 {[%clk 0:03:00.1]} 3... e5 {[%clk 0:03:00.1]}
4. d5 {[%clk 0:03:00.7]} 4... e4 {[%clk 0:03:00.1]} 5. Bg5 {[%clk 0:02:46.5]}
5... Bf5 {[%clk 0:02:59.2]} 6. e3 {[%clk 0:02:36]} 6... Nbd7 {[%clk 0:02:58.9]}
7. Nge2 {[%clk 0:02:36.2]} 7... h6 {[%clk 0:02:57.9]} 8. Bh4 {[%clk 0:02:21.6]}
8... g5 {[%clk 0:02:57.2]} 9. Bg3 {[%clk 0:02:21.3]} 9... Bg7 {[%clk 0:02:57.7]}
10. Nd4 {[%clk 0:02:19.3]} 10... Bg6 {[%clk 0:02:56.6]} 11. Be2 {[%clk
0:02:18.1]} 11... O-O {[%clk 0:02:51.5]} 12. h4 {[%clk 0:02:15.5]} 12... Qe7
{[%clk 0:02:48.2]} 13. hxg5 {[%clk 0:02:06.4]} 13... hxg5 {[%clk 0:02:49.1]} 14.
Qd2 {[%clk 0:01:50.5]} 14... Ne5 {[%clk 0:02:47.7]} 15. O-O-O {[%clk 0:01:49.5]}
15... c5 {[%clk 0:02:31.5]} 16. dxc6 {[%clk 0:01:26.2]} 16... bxc6 {[%clk
0:02:32.4]} 17. Bxe5 {[%clk 0:01:23.6]} 17... dxe5 {[%clk 0:02:31]} 18. Nxc6
{[%clk 0:01:24.1]} 18... Qc5 {[%clk 0:02:30.5]} 19. Nd5 {[%clk 0:01:06.8]} 19...
Rfe8 {[%clk 0:02:10.8]} 20. Nxf6+ {[%clk 0:01:02.6]} 20... Bxf6 {[%clk
0:02:11.7]} 21. Qd5 {[%clk 0:01:02.8]} 21... Qb6 {[%clk 0:02:08.7]} 22. c5
{[%clk 0:00:48.2]} 22... Qb7 {[%clk 0:02:04.1]} 23. Bg4 {[%clk 0:00:36.1]} 23...
Kg7 {[%clk 0:01:48.8]} 24. Bd7 {[%clk 0:00:22.7]} 24... Rh8 {[%clk 0:01:42.4]}
25. Rxh8 {[%clk 0:00:21.9]} 25... Rxh8 {[%clk 0:01:42.7]} 26. Bh3 {[%clk
0:00:10.3]} 26... a5 {[%clk 0:01:30.3]} 27. Kb1 {[%clk 0:00:10]} 27... a4 {[%clk
0:01:27.8]} 28. Rc1 {[%clk 0:00:10.3]} 28... a3 {[%clk 0:01:26.1]} 29. b4 {[%clk
0:00:09]} 29... Ra8 {[%clk 0:01:14.4]} 30. Bd7 {[%clk 0:00:07.6]} 30... Rh8
{[%clk 0:01:07]} 31. Rd1 {[%clk 0:00:06.5]} 31... Rh2 {[%clk 0:01:04.7]} 32. Bh3
{[%clk 0:00:06.1]} 32... g4 {[%clk 0:01:04.4]} 33. Bxg4 {[%clk 0:00:06.6]} 33...
Rxg2 {[%clk 0:01:05]} 34. Rd2 {[%clk 0:00:02.5]} 34... Rxg4 {[%clk 0:01:04.1]}
35. Kc2 {[%clk 0:00:01.3]} 35... Rg1 {[%clk 0:01:01.3]} 0-1